bitfinex/quotes_SOLUSD_20260114
["timestamp","ask_amount","ask_price","bid_price","bid_amount"]
[1768348983383,13.2196462,145.41,145.36,8.42191646]
[1768348983682,0.11999312,145.42,145.37,8.48191644]
[1768348984478,0.81963932,145.42,145.37,6.8789141]
[1768348984790,0.6996462,145.41,145.35,8.42191646]
[1768348985083,0.6996462,145.41,145.36,8.48191644]
[1768348985986,0.6996462,145.41,145.36,0.05999998]
[1768348986377,0.6996462,145.41,145.36,6.9391496]
[1768348986574,0.6996462,145.41,145.36,15.36106606]
[1768348986775,0.6996462,145.41,145.36,6.9391496]
[1768348986976,0.6996462,145.41,145.36,15.36106606]
[1768348987491,0.6996462,145.41,145.36,6.9391496]
[1768348987866,0.6996462,145.41,145.36,15.36106606]
[1768348988183,0.6996462,145.41,145.36,32.5597452]
[1768348988384,0.11999312,145.42,145.39,8.48191644]
[1768348988682,0.11999312,145.42,145.36,17.19867914]
[1768348988860,0.11999312,145.42,145.38,8.42191646]
[1768348989261,0.11999312,145.42,145.37,8.48191644]
[1768348989664,0.11999312,145.42,145.38,8.48191644]
[1768348989864,0.11999312,145.42,145.39,8.42191646]
[1768348990483,0.11999312,145.42,145.4,6.87757909]
[1768348990880,0.66714507,145.44,145.4,6.87757909]
[1768348991195,0.0959945,145.47,145.41,0.05999998]
[1768348991400,0.76313957,145.47,145.43,8.42191646]
[1768348991595,0.76313957,145.47,145.42,8.42191646]
[1768348991898,0.76313957,145.47,145.4,24.07152682]
[1768348992068,0.76313957,145.47,145.41,8.42191646]
[1768348992988,0.66714507,145.46,145.41,15.29882804]
[1768348993192,0.66714507,145.44,145.38,25.61762731]
[1768348993397,0.66714507,145.44,145.36,17.19844162]
[1768348993589,0.66714507,145.42,145.37,6.87870762]
[1768348993780,0.66714507,145.42,145.38,6.87832129]
[1768348994377,9.18505603,145.44,145.39,6.87796017]
[1768348994578,0.66714507,145.43,145.39,6.87796017]
[1768348994876,0.66714507,145.43,145.38,6.87834218]
[1768348995192,0.66714507,145.43,145.36,24.07791327]
[1768348995493,0.66714507,145.42,145.37,8.42191646]
[1768348995788,0.66714507,145.42,145.38,8.42191646]
[1768348995991,0.76313957,145.44,145.38,8.42191646]
[1768348996179,0.76313957,145.44,145.4,8.42191646]
[1768348996386,0.76313957,145.44,145.38,0.05999998]
[1768348996387,0.76313957,145.44,145.39,8.42191646]
[1768348997604,0.76313957,145.44,145.4,6.87757909]
[1768348999899,0.76313957,145.44,145.39,6.87805213]
[1768349000497,0.69189706,145.43,145.36,17.25818008]
[1768349000700,0.69189706,145.43,145.37,15.30045779]
[1768349001184,0.69189706,145.43,145.38,15.30026357]
[1768349001587,0.69189706,145.43,145.38,6.87834711]
[1768349004211,0.69189706,145.43,145.38,15.30026357]
[1768349004382,0.69189706,145.43,145.39,8.42191646]
[1768349004583,0.0959945,145.44,145.4,8.42191646]
[1768349004784,0.0959945,145.44,145.4,8.48191644]
[1768349005102,0.0959945,145.44,145.41,8.42191646]
[1768349005412,0.69189706,145.46,145.41,8.42191646]
[1768349005583,104.2,145.47,145.42,0.05999998]
[1768349005786,104.89189706,145.47,145.41,8.42191646]
[1768349006097,0.69189706,145.46,145.4,0.05999998]
[1768349006306,0.69189706,145.46,145.41,6.87710611]
[1768349008081,0.69189706,145.46,145.41,15.29902257]
[1768349008484,0.69189706,145.46,145.41,32.49178785]
[1768349009305,0.69189706,145.45,145.4,15.3592974]
[1768349009477,0.69189706,145.45,145.41,6.8770409]
[1768349011302,104.2,145.47,145.41,15.29895736]
[1768349011501,0.69189706,145.46,145.41,15.29895736]
[1768349011703,0.69189706,145.46,145.41,32.49172264]
[1768349011907,0.69189706,145.46,145.41,6.8770409]
[1768349012094,0.69189706,145.45,145.4,6.87738005]
[1768349012292,17.18425222,145.49,145.4,6.87738005]
[1768349012293,34.3559044,145.67,145.45,0.69189706]
[1768349012492,8.42191646,145.7,145.57,0.69053247]
[1768349012705,8.42191646,145.63,145.57,3e-08]
[1768349013013,8.42191646,145.61,145.57,3e-08]
[1768349013531,8.42191646,145.59,145.57,3e-08]
[1768349013811,8.42191646,145.6,145.57,3e-08]
[1768349014489,0.69189706,145.59,145.57,3e-08]
[1768349016219,9.11381352,145.59,145.57,3e-08]
[1768349017011,0.71482677,145.58,145.57,3e-08]
[1768349018612,20.94191646,145.58,145.54,6.14596333]
[1768349018795,8.42191646,145.57,145.52,17.17944645]
[1768349018993,12.52,145.58,145.52,17.17944645]
[1768349019192,8.42191646,145.56,145.52,17.17944645]
[1768349019395,8.42191646,145.57,145.52,17.17944645]
[1768349019795,8.42191646,145.56,145.52,6.87190764]
[1768349020004,8.42191646,145.53,145.5,6.87241809]
[1768349020194,8.42191646,145.53,145.49,6.87287954]
[1768349020394,8.42191646,145.52,145.49,6.87287954]
[1768349021494,8.42191646,145.52,145.48,6.87379708]
[1768349022405,8.42191646,145.53,145.48,6.87379708]
[1768349022604,8.42191646,145.53,145.48,7.53316224]
[1768349024415,0.03310294,145.52,145.47,6.87412133]
[1768349024599,0.03310294,145.52,145.48,6.87379184]
[1768349024600,8.42191646,145.51,145.48,6.87379184]
[1768349024808,12.52,145.5,145.48,6.87379184]
[1768349025830,20.94191646,145.5,145.46,6.87458164]
[1768349026041,20.94191646,145.5,145.46,7.5339468]
[1768349026215,12.52,145.5,145.46,7.5339468]
[1768349026417,12.52,145.5,145.47,7.53358245]
[1768349029426,12.52,145.49,145.47,24.71925647]
[1768349029614,12.55310294,145.52,145.47,33.14117293]
[1768349029816,12.55310294,145.52,145.47,32.48180777]
[1768349030121,20.94191646,145.52,145.48,0.65936516]
[1768349030321,12.52,145.52,145.48,0.65936516]
[1768349031423,12.52,145.52,145.49,6.87332462]
[1768349035536,12.52,145.52,145.48,7.53296755]
[1768349036730,12.55310294,145.52,145.47,33.14122524]
[1768349036931,12.52,145.52,145.48,0.65936516]
[1768349037732,12.52,145.52,145.49,6.87332462]
[1768349038133,12.52,145.52,145.49,7.53268978]
[1768349038444,12.52,145.52,145.49,6.87332462]
[1768349038822,0.03310294,145.51,145.49,6.84022168]
[1768349039343,12.52,145.52,145.49,6.84022168]
[1768349039731,12.52,145.52,145.49,7.49958684]
[1768349040325,12.52,145.52,145.49,0.65936516]
[1768349040725,14.55011905,145.52,145.49,0.65936516]
[1768349041050,12.52,145.52,145.49,7.53267735]
[1768349041244,12.52,145.52,145.49,0.65936516]
[1768349041434,2.03011905,145.51,145.49,0.65936516]
[1768349041636,14.55011905,145.52,145.49,0.65936516]
[1768349041842,21.4221172,145.52,145.49,0.65936516]
[1768349042025,2.03011905,145.5,145.45,7.53442464]
[1768349042229,2.03011905,145.49,145.45,7.53442464]
[1768349042551,2.03011905,145.5,145.46,0.65936516]
[1768349043047,2.03011905,145.47,145.42,7.53572779]
[1768349043358,30.73187795,145.52,145.41,6.87681206]
[1768349043359,14.55011905,145.46,145.41,6.87681206]
[1768349043651,2.03011905,145.43,145.38,0.65936516]
[1768349043864,14.55011905,145.42,145.38,0.65936516]
[1768349044155,2.03011905,145.39,145.36,0.65936516]
[1768349044330,2.03011905,145.38,145.34,0.2]
[1768349044654,2.03011905,145.38,145.33,6.88079667]
[1768349044655,12.52,145.39,145.33,0.65936516]
[1768349044846,2.03011905,145.36,145.33,0.65936516]
[1768349045151,14.55011905,145.35,145.32,0.2]
[1768349045361,5.19243527,145.34,145.32,0.2]
[1768349045723,12.52,145.35,145.32,0.2]
[1768349045923,5.19243527,145.34,145.32,0.2]
[1768349047035,17.71243527,145.35,145.32,0.2]
[1768349047750,5.19243527,145.36,145.33,0.69655524]
[1768349047951,17.71243527,145.36,145.33,0.69655524]
[1768349048251,5.19243527,145.35,145.32,0.2]
[1768349048637,5.19243527,145.34,145.32,0.2]
[1768349049433,5.19243527,145.34,145.31,0.69655524]
[1768349050155,6.88033747,145.35,145.29,7.57898801]
[1768349050354,5.19243527,145.34,145.3,0.69655524]
[1768349050653,17.71243527,145.33,145.29,0.69655524]
[1768349050857,5.19243527,145.31,145.28,0.89655524]
[1768349051147,17.71243527,145.33,145.28,0.89655524]
[1768349051538,5.19243527,145.32,145.28,0.89655524]
[1768349051735,5.19243527,145.31,145.28,0.2]
[1768349051942,5.19243527,145.29,145.25,0.2]
[1768349052163,12.52,145.3,145.25,0.2]
[1768349052164,5.19243527,145.28,145.25,0.2]
[1768349052455,5.19243527,145.28,145.25,0.89655524]
[1768349052659,5.19243527,145.26,145.23,0.2]
[1768349053255,5.19243527,145.25,145.22,0.69655524]
[1768349053445,46.89265464,145.25,145.22,0.69655524]
[1768349053646,46.89265464,145.25,145.21,0.2]
[1768349054753,5.19243527,145.24,145.21,0.2]
[1768349055059,48.58493434,145.25,145.21,0.2]
[1768349055364,17.71243527,145.24,145.2,0.2]
[1768349055538,59.23334359,145.24,145.2,0.2]
[1768349055856,5.19243527,145.23,145.2,0.69655524]
[1768349056075,46.67334359,145.23,145.2,0.69655524]
[1768349056359,46.67334359,145.23,145.18,6.88757043]
[1768349056658,41.34159728,145.22,145.18,6.88757043]
[1768349056832,46.53403255,145.22,145.17,6.88824519]
[1768349057340,17.73243527,145.37,145.28,0.6900918]
[1768349057549,3.57621845,145.41,145.36,0.6900918]
[1768349057853,17.73243527,145.4,145.36,0.6900918]
[1768349058058,12.54,145.39,145.36,0.6900918]
[1768349058243,12.54,145.39,145.25,10.69015881]
[1768349058244,5.19243527,145.38,145.31,0.6900918]
[1768349058448,5.19243527,145.37,145.31,0.6900918]
[1768349058756,12.54,145.36,145.31,0.6900918]
[1768349059459,11.815,145.35,145.33,0.6900918]
[1768349059753,12.54,145.36,145.31,5.2394938]
[1768349059958,12.54,145.36,145.3,5.19243527]
[1768349060141,18.44760428,145.36,145.29,5.2394938]
[1768349060336,18.44760428,145.36,145.31,6.88183882]
[1768349060337,13.25516901,145.36,145.31,6.88183882]
[1768349060538,20.13464863,145.36,145.31,6.88183882]
[1768349060957,25.3270839,145.36,145.3,6.88215621]
[1768349061148,25.3270839,145.36,145.29,22.44590839]
[1768349061149,25.3270839,145.36,145.29,12.12192044]
[1768349061844,25.3270839,145.36,145.3,6.88221519]
[1768349062559,13.25516901,145.36,145.3,6.88221519]
[1768349062779,12.54,145.36,145.32,0.04705853]
[1768349062940,12.54,145.36,145.32,5.2394938]
[1768349063140,12.54,145.36,145.33,5.19243527]
[1768349063342,12.54,145.36,145.32,0.04705853]
[1768349063343,12.54,145.36,145.32,5.2394938]
[1768349063968,12.54,145.36,145.33,5.19243527]
[1768349064372,8.05631993,145.41,145.34,0.04705853]
[1768349064663,12.54,145.4,145.36,5.19243527]
[1768349065047,1.17916899,145.41,145.36,5.19243527]
[1768349065247,13.71916899,145.41,145.36,5.19243527]
[1768349065653,13.71916899,145.41,145.35,5.19243527]
[1768349066038,20.59640256,145.41,145.35,5.19243527]
[1768349066269,13.71916899,145.41,145.35,5.19243527]
[1768349066444,13.71916899,145.41,145.36,6.87947165]
[1768349066841,25.78886064,145.41,145.35,12.07223363]
[1768349067238,0.71516901,145.38,145.3,0.04705853]
[1768349067442,0.71516901,145.38,145.31,5.19243527]
[1768349067443,0.71516901,145.37,145.31,5.19243527]
[1768349067743,0.71516901,145.37,145.32,5.19243527]
[1768349067947,0.71516901,145.37,145.33,5.19243527]
[1768349068768,0.71516901,145.37,145.31,0.04705853]
[1768349068769,0.71516901,145.37,145.32,5.19243527]
[1768349069467,7.59420501,145.37,145.32,5.19243527]
[1768349070365,1e-08,145.41,145.36,5.19243527]
[1768349070663,1e-08,145.41,145.4,5.19243527]
[1768349072552,1e-08,145.41,145.36,24.07815079]
[1768349072754,1e-08,145.41,145.36,6.87947165]
[1768349072962,1e-08,145.41,145.36,12.07190692]
[1768349073269,1e-08,145.41,145.36,6.87947165]
[1768349073585,1e-08,145.41,145.37,5.19243527]
[1768349074071,1e-08,145.41,145.36,12.07190692]
[1768349074473,12.52,145.4,145.36,12.07190692]
[1768349074763,12.52,145.4,145.33,17.20189072]
[1768349074956,12.52,145.4,145.34,12.07250354]
[1768349074957,20.11276445,145.4,145.34,12.07250354]
[1768349075362,20.11276445,145.4,145.35,6.87991401]
[1768349075545,13.23516901,145.4,145.36,5.19243527]
[1768349075749,13.23516901,145.4,145.36,12.07172446]
[1768349076260,12.52,145.4,145.37,5.19243527]
[1768349077068,12.52,145.4,145.37,12.07139808]
[1768349077385,12.52,145.4,145.37,5.19243527]
[1768349077551,12.52,145.4,145.37,12.07138909]
[1768349077884,12.52,145.4,145.36,6.87939286]
[1768349078170,12.52,145.4,145.36,12.07182813]
[1768349078552,0.66443868,145.39,145.35,12.07232553]
[1768349078866,0.66443868,145.39,145.32,17.20320099]
[1768349079173,0.66443868,145.39,145.35,5.19243527]
[1768349080169,0.66443868,145.39,145.36,5.19243527]
[1768349080590,12.52,145.4,145.36,5.19243527]
[1768349081119,12.52,145.4,145.37,5.19243527]
[1768349082280,12.52,145.4,145.37,12.07142923]
[1768349083380,0.66443868,145.39,145.31,58.49563001]
[1768349083581,0.66443868,145.39,145.33,5.19243527]
[1768349083950,0.66443868,145.39,145.34,5.19243527]
[1768349084158,0.66443868,145.39,145.31,24.08643588]
[1768349084159,0.66443868,145.39,145.35,5.19243527]
[1768349084468,0.66443869,145.41,145.36,5.19243527]
[1768349084675,12.52,145.38,145.36,5.19243527]
[1768349084873,12.52,145.39,145.36,5.19243527]
[1768349085183,12.52,145.39,145.37,12.07132326]
[1768349085377,12.52,145.39,145.37,6.87888799]
[1768349086570,12.52,145.42,145.37,5.19243527]
[1768349088389,12.52,145.42,145.38,12.07096051]
[1768349088573,12.52,145.42,145.39,5.19243527]
[1768349089175,0.66443868,145.41,145.39,5.19243527]
[1768349089374,0.66443868,145.41,145.38,12.07096051]
[1768349089907,0.66443868,145.41,145.32,6.6801107]
[1768349090061,0.66443868,145.39,145.34,6.88009974]
[1768349090390,0.66443868,145.39,145.34,12.07253501]
[1768349090391,12.52,145.38,145.34,12.07253501]
[1768349091180,12.52,145.38,145.37,5.19243527]
[1768349091469,0.66443868,145.41,145.37,5.19243527]
[1768349092194,19.39663836,145.42,145.37,12.07126013]
[1768349092496,20.06107704,145.42,145.37,12.07126013]
[1768349094096,0.66443868,145.41,145.36,12.07173384]
[1768349094476,0.66443868,145.4,145.36,5.19243527]
[1768349094795,0.66443868,145.4,145.35,12.07237665]
[1768349095389,0.66443868,145.4,145.35,5.19243527]
[1768349095594,0.66443868,145.38,145.33,6.88069762]
[1768349095773,0.66443868,145.38,145.31,17.20413694]
[1768349095774,0.66443868,145.37,145.31,6.88176323]
[1768349096127,0.66443868,145.36,145.31,6.88176323]
[1768349096784,0.66443868,145.36,145.3,5.19243527]
[1768349097100,5.19243527,145.37,145.3,5.85687395]
[1768349097278,8.43446839,145.37,145.3,9.09890707]
[1768349098298,8.4344684,145.36,145.3,15.98081043]
[1768349098501,8.4344684,145.36,145.28,6.88296001]
[1768349098502,8.43446839,145.34,145.28,6.88296001]
[1768349098795,13.97189776,145.35,145.29,6.88275627]
[1768349099004,0.66443868,145.34,145.3,6.88216662]
[1768349100503,0.66443868,145.34,145.29,6.88258152]
[1768349100504,7.54492662,145.34,145.29,6.88258152]
[1768349101001,1.45189776,145.33,145.29,6.88258152]
[1768349101182,2.11633644,145.33,145.29,6.88258152]
[1768349101384,0.66443868,145.32,145.28,6.88316571]
[1768349101704,0.66443868,145.32,145.28,6.88310931]
[1768349102385,0.66443868,145.32,145.27,15.31820212]
[1768349102601,0.66443868,145.32,145.27,15.9826408]
[1768349102803,0.66443868,145.32,145.27,33.19197514]
[1768349103508,1.45189776,145.31,145.27,33.19197514]
[1768349103690,2.11633644,145.31,145.27,32.52753646]
[1768349104098,1.45189776,145.31,145.28,8.43446839]
[1768349104310,20.06467608,145.35,145.3,6.88231245]
[1768349104800,0.66443868,145.34,145.28,25.64196251]
[1768349105181,0.6914054,145.33,145.28,6.88305792]
[1768349105387,0.6914054,145.29,145.22,6.88596563]
[1768349105588,0.6914054,145.26,145.21,48.95223784]
[1768349106003,0.6914054,145.26,145.21,8.43446839]
[1768349106301,16.01017239,145.26,145.2,25.65163917]
[1768349106490,0.6914054,145.25,145.2,25.65163917]
[1768349106887,0.6914054,145.25,145.19,6.88752668]
[1768349107089,0.6914054,145.27,145.21,8.43446839]
[1768349107402,0.6914054,145.27,145.22,8.43446839]
[1768349107701,13.2314054,145.28,145.23,8.43446839]
[1768349108410,13.2314054,145.28,145.24,6.8851556]
[1768349109107,0.6914054,145.27,145.23,6.88545888]
[1768349110518,0.6914054,145.27,145.23,24.0995331]
[1768349111403,0.6914054,145.27,145.23,6.88545888]
[1768349112509,0.6914054,145.27,145.22,6.88610384]
[1768349112811,12.54,145.28,145.23,8.43446839]
[1768349113403,12.54,145.28,145.22,32.53583183]
[1768349113987,21.66587379,145.29,145.22,32.53583183]
[1768349114206,0.6914054,145.33,145.28,8.43446839]
[1768349114408,0.6914054,145.31,145.26,8.43446839]
[1768349114606,0.6914054,145.31,145.25,8.43446839]
[1768349115588,0.6914054,145.31,145.26,6.88420762]
[1768349115993,0.6914054,145.3,145.26,6.88420762]
[1768349116507,16.00777201,145.31,145.26,6.88420762]
[1768349116812,9.12587379,145.3,145.25,6.88452669]
[1768349117314,0.68986463,145.27,145.22,6.88594148]
[1768349117505,0.68986463,145.27,145.21,8.43446839]
[1768349117816,0.68986463,145.27,145.22,6.88610384]
[1768349119002,0.68986463,145.26,145.22,6.88610384]
[1768349119306,0.68986463,145.26,145.21,6.88651791]
[1768349119307,0.68986463,145.25,145.21,6.88651791]
[1768349119998,9.12433302,145.25,145.2,6.88676253]
[1768349120194,21.66433302,145.25,145.2,6.88676253]
[1768349120397,0.68986463,145.24,145.19,15.32183058]
[1768349120601,0.68986463,145.21,145.16,8.63446839]
[1768349120800,0.65986464,145.21,145.17,6.88818409]
[1768349122223,0.65986464,145.21,145.16,15.52333004]
[1768349122998,0.65986464,145.21,145.16,7.08886165]
[1768349123200,0.68986463,145.2,145.16,0.2]
[1768349123411,0.68986463,145.18,145.16,0.2]
[1768349124922,0.68986463,145.16,145.12,0.2]
[1768349125318,7.57894735,145.16,145.12,0.2]
[1768349125706,0.68986463,145.16,145.12,7.09080668]
[1768349126321,7.5788453,145.16,145.12,0.2]
[1768349126621,0.68986463,145.16,145.12,7.09071172]
[1768349127518,0.68986463,145.16,145.12,0.2]
[1768349127519,7.57881806,145.16,145.12,0.2]
[1768349128519,0.68986463,145.15,145.11,0.2]
[1768349128907,0.68986463,145.14,145.11,0.2]
[1768349129220,0.68986463,145.14,145.11,7.09128109]
[1768349129415,0.68986463,145.14,145.11,0.2]
[1768349129616,0.68986463,145.14,145.1,15.32608996]
[1768349129617,0.65986464,145.14,145.1,15.32608996]
[1768349129814,0.42210442,145.14,145.1,15.32608996]
[1768349130401,0.42210442,145.14,145.1,6.89162157]
[1768349131321,28.28657988,145.14,145.09,0.9217634]
[1768349131623,27.86447546,145.14,145.09,0.2]
[1768349131810,0.68986463,145.13,145.09,0.2]
[1768349132622,0.68986463,145.13,145.09,7.09227207]
[1768349133203,0.68986463,145.13,145.09,15.52674046]
[1768349133400,0.68986463,145.13,145.09,7.09227207]
[1768349133603,0.68986463,145.13,145.09,15.52674046]
[1768349133799,12.54,145.14,145.1,0.7217634]
[1768349134026,12.54,145.14,145.11,0.7217634]
[1768349134500,12.54,145.14,145.09,25.04471987]
[1768349134704,12.54,145.14,145.09,33.47918826]
[1768349135015,13.23073076,145.14,145.1,8.43446839]
[1768349135219,13.23073076,145.14,145.09,25.04471987]
[1768349135409,0.69073076,145.16,145.1,9.12403016]
[1768349135724,12.54,145.15,145.11,6.89132382]
[1768349136025,13.23073076,145.15,145.11,6.89132382]
[1768349136717,0.69073076,145.15,145.11,6.89132382]
[1768349136916,13.23073076,145.15,145.1,16.01570711]
[1768349137109,0.69073076,145.14,145.1,15.32614534]
[1768349137809,8.43446839,145.11,145.09,0.2]
[1768349138525,8.43446839,145.11,145.08,0.2]
[1768349138724,8.82228184,145.11,145.08,0.09708269]
[1768349139521,0.28781345,145.1,145.06,0.19708269]
[1768349139917,15.51392409,145.11,145.06,0.19708269]
[1768349141614,8.43446839,145.08,145.06,0.19708269]
[1768349141833,6.89274882,145.08,145.06,0.19708269]
[1768349142018,6.89274882,145.08,145.06,0.00926924]
[1768349142420,8.43446839,145.07,145.04,0.2]
[1768349142931,6.89274882,145.08,145.04,0.2]
[1768349143135,27.86690616,145.09,145.04,0.2]
[1768349143317,27.86690616,145.09,145.04,0.88956177]
[1768349143516,19.43243777,145.09,145.04,0.88956177]
[1768349143722,27.86690616,145.09,145.04,7.78411432]
[1768349144236,12.54,145.09,145.05,7.58367775]
[1768349144440,20.97446839,145.11,145.06,0.68956177]
[1768349145421,15.32626714,145.1,145.06,0.68956177]
[1768349145625,8.43446839,145.08,145.04,0.2]
[1768349145942,6.89179875,145.1,145.01,17.43981436]
[1768349145943,8.43446839,145.05,145.01,0.2]
[1768349147822,20.99446839,145.04,145.01,0.2]
[1768349148115,8.43446839,145.03,145.01,0.2]
[1768349149141,8.43446839,145.03,145.0,0.2]
[1768349149442,12.56,145.04,145.01,7.58560742]
[1768349149619,12.56,145.04,145.0,0.2]
[1768349150025,12.56,145.04,145.0,0.88956177]
[1768349150220,12.56,145.04,145.01,0.68956177]
[1768349152324,12.56,145.04,145.02,0.68956177]
[1768349153147,12.56,145.04,145.0,8.63446839]
[1768349153148,12.56,145.04,145.0,8.43446839]
[1768349153351,7.5824783,145.08,144.96,33.34661538]
[1768349153524,5.54782858,145.06,145.0,8.43446839]
[1768349153843,5.54782858,145.06,145.01,8.43446839]
[1768349154229,5.54782858,145.06,145.02,8.43446839]
[1768349154438,5.54782858,145.06,145.02,15.32988604]
[1768349155252,5.54782858,145.06,145.02,7.58497942]
[1768349155431,13.11956128,145.06,145.0,0.68956177]
[1768349155631,21.55402967,145.06,145.0,0.68956177]
[1768349155833,4.47513979,145.05,145.0,0.68956177]
[1768349156028,4.47513979,145.04,145.0,0.68956177]
[1768349156331,38.78827756,145.06,145.0,7.58610464]
[1768349156652,4.47514773,145.05,145.0,7.58610464]
[1768349156951,4.47514773,145.04,145.0,0.68956177]
[1768349157150,38.78827756,145.06,145.0,0.68956177]
[1768349157358,4.47561858,145.05,145.0,0.68956177]
[1768349157527,4.47561858,145.04,145.0,0.68956177]
[1768349157846,38.78827756,145.06,145.0,0.68956177]
[1768349157847,13.11956128,145.06,145.01,0.68956177]
[1768349158048,4.47577398,145.05,145.01,0.68956177]
[1768349158226,13.11956128,145.06,145.01,0.68956177]
[1768349158425,4.47704799,145.05,145.01,0.68956177]
[1768349158656,13.11956128,145.06,145.01,0.68956177]
[1768349158851,4.58779943,145.05,144.99,0.68956177]
[1768349159051,4.47722265,145.04,144.99,0.68956177]
[1768349159377,4.47722265,145.03,144.99,0.68956177]
[1768349159532,0.66663512,145.02,144.97,12.80107488]
[1768349159844,3e-08,145.02,144.96,5.90323221]
[1768349160232,3e-08,145.02,144.94,38.370843]
[1768349160233,17.77367044,145.01,144.94,6.00323221]
[1768349160440,17.77367044,145.01,144.94,12.90236348]
[1768349160650,6.89655172,145.0,144.95,0.68956177]
[1768349161552,5.21367044,144.99,144.94,0.1]
[1768349161736,5.23659712,144.99,144.94,0.1]
[1768349161937,5.23659712,144.99,144.94,7.68893583]
[1768349162135,0.02292668,144.99,144.94,0.78956177]
[1768349162536,6.8975031,144.98,144.94,0.78956177]
[1768349163152,6.92014797,144.99,144.94,7.68894983]
[1768349163472,5.59355086,145.02,144.96,0.68956177]
[1768349163628,12.10899369,145.03,144.98,0.68956177]
[1768349163826,6.89532325,145.03,144.98,0.68956177]
[1768349164131,12.10899369,145.03,144.98,0.68956177]
[1768349164644,12.10899369,145.03,144.98,7.58702047]
[1768349165259,12.10899369,145.03,144.98,0.68956177]
[1768349165939,12.10899369,145.03,144.98,7.58691216]
[1768349166135,5.54782858,145.06,145.01,0.71707057]
[1768349166333,5.54782858,145.06,145.04,5.21367044]
[1768349166528,5.54782858,145.06,145.04,12.10826429]
[1768349167241,5.54782858,145.06,145.04,6.89459385]
[1768349167436,12.44155357,145.06,145.0,6.89625724]
[1768349167638,12.44155357,145.06,145.0,12.10992768]
[1768349167950,12.44155357,145.06,145.01,6.89591143]
[1768349168336,12.44155357,145.06,145.02,0.71707057]
[1768349169448,5.54782858,145.06,145.03,0.71707057]
[1768349170850,5.54782858,145.06,145.04,6.89464975]
[1768349171175,28.23514318,145.13,145.06,0.71707057]
[1768349171334,40.79514318,145.13,145.07,0.71707057]
[1768349171535,35.20159232,145.13,145.07,0.71707057]
[1768349171953,5.21367044,145.11,145.06,0.71707057]
[1768349172157,4.50653012,145.1,145.06,0.71707057]
[1768349172354,4.50653012,145.09,145.04,7.61172032]
[1768349172558,4.50653012,145.08,145.04,7.61172032]
[1768349172759,4.50653012,145.07,145.04,12.82539076]
[1768349173059,6.89183484,145.1,145.04,12.82539076]
[1768349173255,4.51030503,145.09,145.04,7.61172032]
[1768349173463,4.51030503,145.08,145.04,12.82539076]
[1768349173659,12.30547543,145.11,145.05,0.71707057]
[1768349174557,7.09180499,145.11,145.03,17.23713649]
[1768349174743,7.09180499,145.11,145.04,5.21367044]
[1768349174937,12.56,145.13,145.06,0.71707057]
[1768349175260,5.21367044,145.11,145.06,0.71707057]
[1768349176262,6.89179875,145.1,145.04,12.82500764]
[1768349176750,6.89179875,145.1,145.05,0.71707057]
[1768349177146,12.10546919,145.1,145.05,0.71707057]
[1768349177862,24.66546919,145.1,145.05,0.71707057]
[1768349178656,19.45179875,145.1,145.05,0.71707057]
[1768349178966,19.45179875,145.1,145.05,7.61117897]
[1768349179684,0.6913262,145.15,145.1,0.69132096]
[1768349179970,41.88517938,145.16,145.1,0.69132096]
[1768349180150,5.21367044,145.14,145.06,0.69132096]
[1768349180461,6.89010538,145.14,145.09,0.69132096]
[1768349181059,5.88835743,145.11,145.05,7.58506899]
[1768349181259,0.14197345,145.1,145.05,7.58506899]
[1768349181472,5.33917107,145.11,145.05,7.58506899]
[1768349181649,5.33917107,145.11,145.06,6.89365749]
[1768349181963,0.12550063,145.11,145.06,7.58497845]
[1768349182565,12.23054746,145.11,145.06,0.69132096]
[1768349182956,29.45885701,145.11,145.06,0.69132096]
[1768349183458,12.23054746,145.11,145.06,0.69132096]
[1768349183669,5.21367044,145.1,145.06,0.69132096]
[1768349184352,7.01687702,145.11,145.06,0.69132096]
[1768349184671,5.21367044,145.1,145.06,0.69132096]
[1768349185249,12.10550357,145.1,145.06,0.69132096]
[1768349185453,8.93412464,145.1,145.06,0.69132096]
[1768349185666,4.52196927,145.09,145.06,0.69132096]
[1768349185864,4.52196927,145.08,145.06,0.69132096]
[1768349186061,4.52196927,145.07,145.06,0.69132096]
[1768349186265,8.93412464,145.1,145.06,0.69132096]
[1768349187367,12.1016991,145.1,145.06,0.69132096]
[1768349188163,0.1365925,145.07,145.01,23.14079177]
[1768349188358,12.6965925,145.07,145.02,0.69132096]
[1768349188761,12.6965925,145.07,145.03,6.8948565]
[1768349189455,0.67468699,145.06,145.0,5.90118693]
[1768349189657,0.14197345,145.05,145.01,0.69132096]
[1768349189856,0.68566795,145.05,144.99,23.14316726]
[1768349190065,0.68566795,145.05,144.99,17.93330129]
[1768349190268,0.68566795,145.05,145.0,6.89655172]
[1768349190469,7.58015548,145.05,145.0,6.89655172]